bitfinex/quotes_ETHUSD_20250731
["timestamp","ask_amount","ask_price","bid_price","bid_amount"]
[1753937414670,0.55,3871.5,3870.7,3.934]
[1753937414873,1.07443887,3871.4,3870.7,3.934]
[1753937415060,0.24224935,3871.3,3870.7,3.934]
[1753937415260,0.24224935,3871.2,3870.7,3.934]
[1753937415460,0.24224935,3871.1,3870.7,3.934]
[1753937415759,0.24224935,3871.0,3870.7,3.934]
[1753937415958,0.24224935,3870.9,3870.7,3.934]
[1753937416158,0.83218952,3871.4,3870.7,3.934]
[1753937416390,0.89917912,3871.3,3870.7,3.934]
[1753937416579,0.2422552,3871.2,3870.9,2.0]
[1753937416782,0.2422552,3871.1,3870.9,2.0]
[1753937416999,0.65692392,3871.3,3870.9,2.0]
[1753937417000,0.2422552,3871.0,3870.9,2.0]
[1753937418382,0.2422552,3871.0,3870.9,2.001]
[1753937420096,0.24231503,3871.0,3870.9,2.001]
[1753937423111,0.24229748,3871.0,3870.9,2.001]
[1753937423310,0.79229748,3871.0,3870.9,2.001]
[1753937423609,0.93721962,3871.0,3870.9,2.001]
[1753937424012,0.9372211,3871.0,3870.9,2.001]
[1753937427127,0.3872211,3871.0,3870.9,2.001]
[1753937427387,0.24229896,3871.0,3870.9,2.001]
[1753937430517,0.24213212,3871.0,3870.9,2.001]
[1753937435218,0.24212665,3871.0,3870.9,2.001]
[1753937441325,0.24221559,3871.0,3870.9,2.001]
[1753937449548,3.13291632,3871.6,3870.9,2.001]
[1753937449731,0.55,3871.4,3870.9,2.001]
[1753937449933,0.24243071,3871.3,3870.9,2.001]
[1753937450134,0.55,3871.4,3870.9,2.001]
[1753937450513,0.24242542,3871.3,3870.9,2.001]
[1753937450846,0.55,3871.4,3870.9,2.001]
[1753937451048,0.15567916,3871.3,3870.9,2.001]
[1753937451252,0.24242478,3871.2,3870.9,2.001]
[1753937451459,0.24242478,3871.1,3870.9,2.001]
[1753937451628,0.24242478,3871.0,3870.9,2.001]
[1753937453230,0.24239902,3871.0,3870.9,2.001]
[1753937458561,0.79239902,3871.0,3870.9,2.001]
[1753937458730,1.36906157,3871.0,3870.9,2.001]
[1753937460864,8.77092071,3871.0,3870.9,2.001]
[1753937461066,2.58357877,3870.6,3870.5,0.001]
[1753937461268,15.95587355,3870.6,3870.5,0.001]
[1753937461458,16.19824866,3870.6,3870.5,0.001]
[1753937461632,3.13377903,3870.3,3870.2,0.001]
[1753937461968,3.61855316,3870.3,3870.2,0.001]
[1753937462668,3.61819096,3870.3,3870.2,0.001]
[1753937462844,4.35053267,3870.3,3870.2,0.001]
[1753937463170,1.76675364,3870.3,3870.2,0.001]
[1753937463346,0.79239902,3870.3,3870.2,0.001]
[1753937464871,0.24239902,3870.3,3870.2,0.001]
[1753937466076,0.24239902,3870.3,3870.2,2.58484579]
[1753937466572,3.932,3871.2,3870.3,2.58372017]
[1753937466749,0.24170979,3871.1,3870.4,2.58369368]
[1753937466934,0.24170979,3871.0,3870.4,2.58369368]
[1753937467135,0.24170979,3870.9,3870.4,2.58369368]
[1753937467336,0.24170979,3870.8,3870.4,2.58369368]
[1753937467536,0.24170979,3870.7,3870.4,3.58250236]
[1753937467761,0.24170979,3870.6,3870.4,3.58250236]
[1753937468074,0.24170979,3870.5,3870.4,3.58250236]
[1753937468771,0.24170979,3870.5,3870.4,3.58252095]
[1753937470074,0.24170979,3870.5,3870.4,0.99880868]
[1753937470760,0.24170979,3870.5,3870.4,3.58252095]
[1753937472981,0.24170979,3870.5,3870.4,8.40106829]
[1753937473162,0.55,3871.6,3870.6,2.58353505]
[1753937473370,0.24171622,3871.5,3870.7,6.515483]
[1753937473574,0.24171622,3871.4,3870.7,3.932]
[1753937473882,0.24171622,3871.3,3870.7,3.932]
[1753937474084,0.24171622,3871.2,3870.7,3.932]
[1753937474286,0.24171622,3871.1,3870.7,3.932]
[1753937474495,0.24171622,3871.0,3870.7,3.932]
[1753937474641,0.24171622,3870.9,3870.7,3.932]
[1753937474846,0.24171622,3870.8,3870.7,6.5154926]
[1753937475083,0.24171622,3870.8,3870.7,3.932]
[1753937475545,0.24171622,3870.8,3870.7,6.51551202]
[1753937476771,0.24171622,3870.8,3870.7,8.00716198]
[1753937477286,0.55,3871.6,3870.8,2.5833796]
[1753937477463,0.24167234,3871.5,3870.8,2.5833796]
[1753937477665,0.24167234,3871.4,3870.8,2.5833796]
[1753937477997,0.24167234,3871.3,3870.7,8.00713898]
[1753937478190,0.24167234,3871.2,3870.8,2.58343506]
[1753937478398,0.24167234,3871.1,3870.8,2.58343506]
[1753937478595,0.24167234,3871.0,3870.8,3.64250059]
[1753937478895,0.002,3871.7,3870.9,2.58337397]
[1753937479049,0.24165844,3871.6,3871.0,3.931]
[1753937479248,0.24165844,3871.5,3871.0,3.931]
[1753937479478,0.24165844,3871.4,3871.0,3.931]
[1753937479672,0.24165844,3871.3,3871.0,3.931]
[1753937479891,0.24165844,3871.2,3871.0,3.931]
[1753937480048,0.24165844,3871.1,3871.0,3.931]
[1753937481099,0.2416492,3871.1,3871.0,3.931]
[1753937481485,0.2416492,3871.1,3871.0,6.5143118]
[1753937483465,0.002,3871.7,3871.0,6.5143118]
[1753937483671,0.24158127,3871.6,3871.0,6.5143118]
[1753937483886,0.24158127,3871.5,3871.0,3.931]
[1753937484192,0.24158127,3871.4,3871.0,3.931]
[1753937484368,0.002,3871.7,3871.0,3.931]
[1753937484369,0.002,3871.1,3871.0,3.931]
[1753937484714,0.002,3871.1,3871.0,6.5143118]
[1753937485380,0.002,3871.1,3871.0,3.931]
[1753937486387,0.002,3871.1,3871.0,6.5143118]
[1753937487564,0.002,3871.1,3871.0,3.931]
[1753937488195,0.002,3871.1,3871.0,6.5143118]
[1753937489203,0.002,3871.1,3871.0,3.931]
[1753937493415,0.24375266,3871.1,3871.0,3.931]
[1753937493808,0.002,3871.1,3871.0,3.931]
[1753937494270,0.24386187,3871.1,3871.0,3.931]
[1753937496008,0.24386187,3871.1,3871.0,6.5143118]
[1753937496918,0.24386187,3871.1,3871.0,3.931]
[1753937497913,0.24399555,3871.1,3871.0,6.5143118]
[1753937498425,0.24399555,3871.1,3871.0,3.931]
[1753937498719,0.004,3875.2,3871.4,2.58304489]
[1753937498925,0.24199999,3873.5,3873.0,7.40051075]
[1753937499084,3.25719713,3874.4,3873.1,4.077]
[1753937499289,3.0,3874.3,3873.2,6.65884088]
[1753937499484,3.0,3874.4,3873.2,6.65884088]
[1753937499705,0.55,3874.3,3873.2,4.077]
[1753937500098,0.55,3874.0,3873.2,4.077]
[1753937500388,0.002,3874.1,3873.2,4.077]
[1753937502002,0.56031246,3874.1,3873.2,4.077]
[1753937504593,0.55,3874.0,3873.2,4.077]
[1753937505410,0.69048013,3874.1,3873.2,4.077]
[1753937505411,0.56031246,3874.1,3873.2,4.077]
[1753937507321,0.55,3874.0,3873.2,4.077]
[1753937508426,0.002,3874.1,3873.3,2.58173553]
[1753937508638,0.552,3874.1,3873.4,0.92406364]
[1753937510288,0.002,3874.1,3873.8,2.58140527]
[1753937510493,0.002,3874.1,3873.9,4.295]
[1753937510727,0.002,3874.1,3874.0,3.999]
[1753937511294,0.002,3874.1,3873.0,3.0]
[1753937511529,0.002,3874.1,3872.9,2.58201967]
[1753937511530,0.002,3874.1,3873.1,1.0400567]
[1753937511707,0.002,3874.1,3873.5,2.58164298]
[1753937511891,0.002,3874.1,3873.6,4.0]
[1753937512730,0.002,3874.1,3873.5,2.58164298]
[1753937512943,0.002,3874.1,3873.7,4.0]
[1753937513124,0.002,3874.1,3873.1,1.0400567]
[1753937513432,0.002,3874.1,3873.2,2.58184446]
[1753937513639,0.002,3874.1,3873.2,6.58084446]
[1753937514004,0.002,3874.1,3873.3,3.998]
[1753937516841,0.002,3874.1,3873.1,2.58185575]
[1753937517045,0.552,3874.1,3872.9,2.58204394]
[1753937517207,0.55,3873.9,3873.2,3.996]
[1753937518509,0.55,3873.9,3872.5,2.58226682]
[1753937518710,0.55,3873.9,3872.8,2.58210581]
[1753937519312,0.55,3873.9,3872.7,2.58215359]
[1753937519707,0.55,3873.9,3872.6,3.0]
[1753937519904,0.34466501,3873.8,3872.7,3.993]
[1753937520141,0.55,3873.9,3872.8,2.58206623]
[1753937520448,0.55,3873.9,3872.9,3.993]
[1753937520941,3.13131477,3874.0,3872.9,3.993]
[1753937521141,3.13131477,3874.0,3872.7,2.58217491]
[1753937521344,0.55,3874.0,3872.7,2.58217491]
[1753937521548,0.55,3873.8,3872.8,3.992]
[1753937521750,0.55,3873.8,3872.9,3.992]
[1753937522129,0.55,3873.9,3872.9,3.992]
[1753937522468,2.58132152,3874.0,3872.9,3.992]
[1753937522469,0.55,3874.0,3872.9,3.992]
[1753937522749,0.55,3874.0,3872.9,2.58203946]
[1753937522924,0.87653651,3874.0,3872.9,2.58203946]
[1753937523117,0.87653651,3874.0,3873.0,3.991]
[1753937524157,0.002,3874.1,3873.2,4.81854734]
[1753937524446,0.002,3874.1,3873.5,4.81854734]
[1753937524652,0.002,3874.1,3873.7,2.58144665]
[1753937524946,0.002,3874.1,3873.8,2.58142469]
[1753937525112,0.002,3874.1,3873.9,2.58133631]
[1753937525312,0.002,3874.1,3874.0,3.992]
[1753937525548,0.002,3874.1,3874.0,4.90748475]
[1753937526853,0.002,3874.1,3874.0,3.992]
[1753937529138,0.24342419,3874.1,3874.0,3.992]
[1753937529646,0.002,3874.1,3874.0,3.992]
[1753937531849,0.002,3874.1,3873.6,3.0]
[1753937532055,0.002,3874.1,3873.7,3.985]
[1753937532636,0.002,3874.1,3873.8,3.985]
[1753937532850,0.002,3874.1,3873.9,3.984]
[1753937533353,0.002,3874.1,3874.0,3.984]
[1753937533718,0.002,3874.1,3873.7,2.58150668]
[1753937533918,0.002,3874.1,3873.8,4.49931471]
[1753937535867,0.002,3874.1,3873.8,0.51631471]
[1753937536154,0.002,3874.1,3873.9,3.983]
[1753937536652,0.002,3874.1,3874.0,3.981]
[1753937537536,0.24382378,3874.1,3874.0,3.981]
[1753937542650,0.24382378,3874.1,3873.5,2.58163116]
[1753937542856,0.24182378,3874.0,3873.6,4.53316312]
[1753937543055,0.002,3874.1,3873.6,7.11473603]
[1753937543254,0.24189835,3874.0,3873.6,3.13973603]
[1753937543453,0.002,3874.1,3873.7,3.975]
[1753937543759,0.24189055,3874.0,3873.7,3.975]
[1753937544062,0.002,3874.1,3873.8,0.71147326]
[1753937544442,0.002,3874.1,3873.8,3.29289149]
[1753937545367,0.002,3874.1,3873.9,2.58137763]
[1753937545555,0.002,3874.1,3873.8,0.71147326]
[1753937545556,0.002,3874.1,3874.0,3.974]
[1753937549160,0.002,3874.1,3873.7,4.25]
[1753937549376,0.24187492,3874.0,3873.8,3.97]
[1753937549673,0.24188769,3873.9,3873.7,4.25]
[1753937549968,0.24188902,3873.8,3872.7,2.58213507]
[1753937550169,0.55,3874.0,3872.8,3.973]
[1753937550373,0.24189846,3873.9,3872.8,2.58210448]
[1753937550543,0.24189846,3873.8,3872.9,3.974]
[1753937550739,0.55,3874.0,3872.8,2.58211057]
[1753937551067,0.24190197,3873.9,3873.0,3.973]
[1753937551378,0.24190197,3873.8,3873.0,3.973]
[1753937551541,0.55,3874.0,3873.0,3.973]
[1753937551740,0.55523892,3873.9,3873.0,3.973]
[1753937551942,0.24191246,3873.8,3873.0,3.973]
[1753937552142,0.31332646,3873.9,3873.0,3.973]
[1753937552365,0.2419248,3873.8,3873.0,3.973]
[1753937552546,0.31332646,3873.9,3873.0,3.973]
[1753937552743,0.24192512,3873.8,3872.8,2.58209921]
[1753937552976,0.31332646,3873.9,3872.9,3.973]
[1753937553156,0.24192483,3873.8,3872.9,3.973]
[1753937553355,0.31332646,3873.9,3872.9,3.973]
[1753937553552,0.24196079,3873.8,3873.0,3.971]
[1753937553768,0.24196694,3873.7,3873.0,3.971]
[1753937554077,0.24196694,3873.6,3873.0,3.971]
[1753937554273,0.24196694,3873.5,3873.1,3.971]
[1753937554481,0.24196694,3873.4,3873.1,3.971]
[1753937554668,0.24200029,3873.3,3873.1,3.971]
[1753937554868,0.552,3874.1,3873.1,3.971]
[1753937555172,2.62073991,3874.9,3873.1,3.971]
[1753937555377,2.5812463,3874.1,3873.1,3.971]
[1753937555695,3.0,3874.4,3872.6,10.455]
[1753937555973,0.24198695,3874.3,3872.7,11.78854734]
[1753937556166,2.82320477,3874.2,3872.8,2.58206644]
[1753937556368,0.78241751,3874.1,3872.8,4.96229023]
[1753937556567,0.54043056,3874.1,3872.8,4.96229023]
[1753937556875,0.54043056,3874.1,3872.9,3.969]
[1753937557176,0.55,3874.0,3872.9,3.969]
[1753937557581,0.55,3874.0,3872.9,6.5510415]
[1753937557791,0.55,3874.0,3872.9,9.1047465]
[1753937558863,0.55,3874.0,3872.9,6.522705]
[1753937559589,0.54043056,3874.1,3872.9,9.10472775]
[1753937559890,0.55,3874.0,3872.9,9.10472775]
[1753937562304,0.54043056,3874.1,3872.9,9.10473007]
[1753937562493,0.54043056,3874.1,3873.0,6.4027747]
[1753937562898,0.55,3874.0,3873.0,8.98474718]
[1753937563792,0.55,3874.0,3873.0,6.4027747]
[1753937564096,0.55,3874.0,3873.0,8.98474605]
[1753937564284,0.55,3874.0,3873.0,6.4027747]
[1753937564701,0.13094838,3874.1,3873.1,1.55074984]
[1753937564995,0.55,3874.2,3873.2,3.965]
[1753937565703,0.002,3874.5,3873.3,4.81854734]
[1753937565870,3.002,3874.5,3873.3,7.40031888]
[1753937566069,0.24176883,3874.4,3873.4,1.13653189]
[1753937566306,0.24176883,3874.4,3873.5,3.963]
[1753937567107,0.19176883,3874.4,3873.5,3.963]
[1753937567268,0.24178738,3874.3,3873.5,3.963]
[1753937567469,0.24178738,3874.2,3873.5,3.963]
[1753937567768,0.24178738,3874.1,3873.5,3.963]
[1753937567964,0.24178738,3874.0,3873.5,5.21298496]
[1753937568291,0.24178738,3873.9,3873.5,5.21298496]
[1753937568490,0.24178738,3873.8,3873.5,5.21298496]
[1753937568800,0.24178738,3873.7,3873.5,5.21298496]
[1753937569000,0.24178738,3873.6,3873.5,5.21298496]
[1753937569599,0.24178738,3873.6,3873.5,1.24998496]
[1753937569804,0.24178738,3873.6,3872.8,4.25]
[1753937570097,0.24178738,3873.5,3872.9,3.962]
[1753937570267,0.24178738,3873.4,3873.0,3.963]
[1753937570469,2.58128386,3874.1,3872.8,4.25]
[1753937570693,0.24182213,3874.0,3872.9,3.963]
[1753937570893,0.24182213,3873.9,3873.0,1.37951109]
[1753937571116,0.24182213,3873.8,3873.0,1.37951109]
[1753937571319,0.24182213,3873.7,3873.1,3.963]
[1753937571595,0.24182213,3873.6,3873.1,3.963]
[1753937571795,0.24182213,3873.5,3873.1,3.963]
[1753937572093,0.24182213,3873.4,3873.2,1.27430852]
[1753937572430,2.58319236,3874.2,3873.2,1.27430852]
[1753937572603,0.24183836,3874.1,3873.1,3.963]
[1753937572805,0.24183836,3874.0,3873.1,3.963]
[1753937573000,2.58126076,3874.1,3873.1,3.963]
[1753937573304,0.24183828,3874.0,3873.1,3.963]
[1753937573506,0.24183828,3873.9,3873.1,3.963]
[1753937573826,0.24183828,3873.8,3873.1,3.963]
[1753937574016,0.24183828,3873.7,3873.1,5.66230907]
[1753937574191,0.24183828,3873.6,3873.1,5.66230907]
[1753937574389,0.24183828,3873.5,3873.1,1.69930907]
[1753937574593,0.24183828,3873.4,3873.2,3.96]
[1753937574833,2.58319093,3874.2,3873.1,1.69930907]
[1753937575024,0.24186709,3874.1,3872.9,7.40058862]
[1753937575328,0.24186709,3874.0,3873.0,3.96]
[1753937575494,0.24186709,3873.9,3873.1,3.96]
[1753937575695,0.24186709,3873.8,3873.1,3.96]
[1753937575894,0.24186709,3873.7,3873.1,3.96]
[1753937576095,0.24186709,3873.6,3873.4,4.81854734]
[1753937576333,0.002,3874.2,3873.5,4.123]
[1753937576632,0.24194049,3874.1,3873.5,4.123]
[1753937576831,0.24194049,3874.0,3873.5,4.123]
[1753937577032,0.24194049,3873.9,3873.5,4.123]
[1753937577348,0.24194049,3873.8,3873.5,4.123]
[1753937577528,0.24194049,3873.7,3873.5,4.123]
[1753937577730,0.24194049,3873.6,3873.5,4.123]
[1753937582623,0.24194049,3873.6,3873.5,5.12899848]
[1753937586750,0.24194049,3873.6,3873.5,4.123]
[1753937589550,0.24194049,3873.6,3873.5,3.952]
[1753937592662,0.24194049,3873.6,3873.5,3.95]
[1753937593178,0.24222208,3873.6,3873.5,3.95]
[1753937593874,0.24222208,3873.6,3873.5,3.951]
[1753937594049,0.24222208,3873.6,3873.5,3.95]
[1753937595655,0.24222208,3873.6,3873.5,0.001]
[1753937595975,0.24222208,3873.6,3873.5,3.949]
[1753937597241,0.24222208,3873.6,3873.5,0.001]
[1753937597443,0.24222208,3873.6,3873.5,3.948]
[1753937599086,0.24222208,3873.6,3873.5,3.947]
[1753937600282,0.24222208,3873.6,3873.5,0.001]
[1753937600458,0.24222208,3873.6,3873.5,3.947]
[1753937602284,0.24222208,3873.6,3873.5,0.001]
[1753937602487,0.24222208,3873.6,3873.5,3.946]
[1753937602877,0.24222208,3873.6,3873.5,3.945]
[1753937605189,0.24222208,3873.6,3873.5,0.001]
[1753937605352,0.24222208,3873.6,3873.5,3.944]
[1753937606497,0.24222208,3873.6,3873.5,3.943]
[1753937608724,0.24222208,3873.6,3873.5,0.001]
[1753937609785,0.79222208,3873.6,3873.5,0.001]
[1753937610192,1.12959067,3873.6,3873.5,0.001]
[1753937611215,1.12953704,3873.6,3873.5,0.001]
[1753937612827,1.37168231,3873.6,3873.5,0.001]
[1753937614307,1.03431372,3873.6,3873.5,0.001]
[1753937615435,0.48431372,3873.6,3873.5,0.001]
[1753937615639,0.24216845,3873.6,3873.5,0.001]
[1753937621308,0.24213027,3873.6,3873.5,0.001]
[1753937626738,0.24221358,3873.6,3873.5,0.001]
[1753937627696,0.47236694,3873.6,3873.5,0.001]
[1753937627897,3.6039448,3873.6,3873.5,0.001]
[1753937628447,3.84615911,3873.6,3873.5,0.001]
[1753937628905,4.48892292,3873.6,3873.5,0.001]
[1753937631985,4.00449503,3873.6,3873.5,0.001]
[1753937632499,4.48887217,3873.6,3873.5,0.001]
[1753937634193,4.48884467,3873.6,3873.5,0.001]
[1753937634368,1.90726681,3873.6,3873.5,0.001]
[1753937638309,1.67711345,3873.6,3873.5,0.001]
[1753937638605,1.67704962,3873.6,3873.5,0.001]
[1753937639103,0.24212474,3873.6,3873.5,0.001]
[1753937641005,0.24210552,3873.6,3873.5,0.001]
[1753937646666,0.24209614,3873.6,3873.5,0.001]
[1753937649592,0.55,3874.0,3873.5,0.001]
[1753937649797,0.48418058,3873.9,3873.5,0.001]
[1753937649996,0.24209029,3873.8,3873.5,0.001]
[1753937650196,0.24209029,3873.7,3873.5,0.001]
[1753937650401,0.24209029,3873.6,3873.5,0.001]
[1753937652880,0.24209007,3873.6,3873.5,0.001]
[1753937660590,0.24210555,3873.6,3873.5,0.001]
[1753937681769,0.24210555,3873.6,3873.5,4.1962729]
[1753937682275,0.002,3874.2,3873.5,4.1962729]
[1753937682474,0.24207778,3874.1,3873.6,2.58152795]
[1753937682664,0.24207778,3874.0,3873.6,2.58152795]
[1753937682971,0.002,3874.2,3873.6,2.58152795]
[1753937683136,0.24207215,3874.1,3873.7,0.67778009]
[1753937683339,0.24207215,3874.0,3873.7,0.67778009]
[1753937683549,0.24207215,3873.9,3873.7,0.67778009]
[1753937683755,0.002,3874.2,3873.8,2.58144457]
[1753937684079,0.24198075,3874.1,3873.8,2.58144457]
[1753937684280,0.002,3874.2,3873.9,0.58408]
[1753937684585,0.2418933,3874.1,3874.0,3.937]
[1753937684975,0.002,3874.2,3874.0,3.937]
[1753937693010,0.002,3874.2,3874.1,3.936]
[1753937695892,0.002,3874.2,3874.1,3.935]
[1753937697001,0.24350456,3874.2,3874.1,3.935]
[1753937697198,0.24350456,3874.2,3873.6,2.58156615]
[1753937697403,0.002,3874.2,3873.7,3.935]
[1753937697776,0.002,3874.2,3873.5,2.58262543]
[1753937697994,0.002,3874.2,3873.6,6.51656397]
[1753937698406,0.002,3874.2,3873.7,2.58150743]
[1753937698600,0.002,3874.2,3873.8,2.58143082]
[1753937698801,0.002,3874.2,3873.9,3.935]
[1753937700591,4.08667632,3874.1,3874.0,3.935]
[1753937701094,4.08667632,3874.1,3873.5,0.001]
[1753937701296,0.002,3874.2,3873.6,3.935]
[1753937701483,0.002,3874.2,3873.7,5.58150376]
[1753937701684,0.002,3874.2,3873.5,0.25927767]
[1753937701685,3.84709799,3874.2,3873.5,0.25927767]
[1753937701908,3.84709799,3874.2,3873.6,6.935]
[1753937702209,3.84709799,3874.2,3873.6,9.51657061]
[1753937702412,3.84709799,3874.2,3873.7,7.75225554]
[1753937702576,3.84709799,3874.2,3873.8,3.935]
[1753937702971,3.84709799,3874.2,3873.9,3.935]
[1753937703173,3.84709799,3874.2,3873.9,3.936]
[1753937703409,0.002,3874.2,3873.9,3.936]
[1753937704578,0.002,3874.2,3874.0,3.935]
[1753937705814,0.002,3874.2,3873.9,0.001]
[1753937705815,0.002,3874.2,3874.1,3.935]
[1753937705976,0.24372447,3874.2,3874.1,3.935]
[1753937710339,4.08882246,3874.2,3874.1,3.935]
[1753937710522,4.49810471,3874.2,3874.1,3.935]
[1753937710811,0.65300672,3874.2,3874.1,3.935]
[1753937711014,0.24372447,3874.2,3874.1,3.935]
[1753937711220,4.08882246,3874.2,3874.1,3.935]
[1753937711510,4.08922664,3874.2,3874.1,3.935]
[1753937711717,0.24412865,3874.2,3874.1,3.935]
[1753937712080,0.24412422,3874.2,3874.1,3.935]
[1753937713417,0.24412422,3874.2,3873.9,0.001]
[1753937713611,0.24212422,3874.1,3874.0,3.935]
[1753937714395,0.24212422,3874.1,3874.0,4.3286]
[1753937715600,0.002,3874.2,3874.1,2.58124467]
[1753937716249,0.002,3874.2,3874.1,5.58124467]
[1753937717224,0.04,3874.9,3874.1,5.58124467]
[1753937717225,0.0448,3875.9,3874.1,4.99]
[1753937717437,0.0448,3875.9,3874.4,3.0]
[1753937717738,0.0448,3875.9,3875.1,2.58057856]
[1753937717907,0.0448,3875.9,3875.1,6.53057856]
[1753937718315,0.0448,3875.9,3875.1,3.95]
[1753937718316,0.24147043,3875.8,3875.1,3.95]
[1753937718549,0.0448,3875.9,3875.1,6.53057856]
[1753937718695,0.0448,3875.9,3875.1,3.95]
[1753937718899,4.81900511,3875.7,3874.8,2.58074897]
[1753937719100,0.24148431,3875.6,3874.9,3.953]
[1753937719346,4.81900511,3875.7,3875.0,3.952]
[1753937719546,4.80271905,3875.3,3874.3,2.58108666]
[1753937719710,4.80271905,3875.3,3874.5,3.0]
[1753937720032,4.81900511,3875.7,3874.5,3.0]
[1753937720254,0.24139721,3875.6,3874.5,3.0]
[1753937720404,0.01628606,3875.7,3874.6,2.58091157]
[1753937720608,0.01628606,3875.7,3874.7,3.955]
[1753937721396,0.24124487,3875.6,3874.5,3.0]
[1753937721591,5.04397774,3875.5,3874.4,3.25810867]
[1753937721796,4.80271905,3875.5,3874.5,4.53792814]
[1753937722118,4.80271905,3875.5,3874.6,3.0]
[1753937722296,4.80271905,3875.6,3874.6,3.0]
[1753937723801,4.81900511,3875.7,3874.6,3.0]
[1753937724031,0.24118527,3875.6,3874.6,3.0]
[1753937725028,0.24118527,3875.6,3874.7,3.952]
[1753937725230,0.01628606,3875.7,3874.7,3.952]
[1753937725393,0.25742792,3875.7,3874.7,3.952]
[1753937726904,0.01628606,3875.7,3874.7,3.952]
[1753937727132,0.25739289,3875.7,3874.7,3.952]
[1753937727734,0.01628606,3875.7,3874.7,8.202]
[1753937727940,0.25738848,3875.7,3874.7,8.202]
[1753937728636,0.25738848,3875.7,3874.7,3.952]
[1753937728829,0.25738848,3875.7,3874.8,1.01168849]
[1753937730015,0.01628606,3875.7,3874.8,1.01168849]
[1753937730205,4.80671905,3875.4,3874.5,0.58392814]
[1753937730532,0.004,3875.4,3874.6,3.949]
[1753937731947,0.004,3875.4,3874.6,6.5298611]
[1753937732151,0.004,3875.4,3874.7,2.5808323]
[1753937732448,0.004,3875.4,3875.0,2.58062642]
[1753937732650,0.004,3875.4,3875.1,3.948]
[1753937732895,0.004,3875.4,3875.1,4.60086264]
[1753937734344,0.004,3875.4,3874.4,0.25910867]
[1753937734345,4.80671905,3875.4,3874.6,2.58088975]
[1753937734519,4.80671905,3875.4,3874.7,3.947]
[1753937736944,4.80671905,3875.4,3874.5,0.001]
[1753937737238,4.80671905,3875.4,3874.6,3.946]
[1753937737445,4.80671905,3875.4,3874.6,6.52690592]
[1753937737754,4.80671905,3875.4,3874.7,0.65289059]
[1753937737934,4.80671905,3875.4,3874.6,6.5268947]
[1753937738667,0.004,3875.4,3874.7,2.58084489]
[1753937738952,0.004,3875.4,3874.7,5.58078162]
[1753937739770,0.004,3875.4,3875.0,2.58061095]
[1753937739968,0.004,3875.4,3875.1,6.52557856]
[1753937740113,0.004,3875.4,3875.1,4.85563431]
[1753937741900,0.004,3875.4,3875.1,7.43621287]
[1753937742390,0.004,3875.4,3875.1,4.85563431]
[1753937743194,0.004,3875.4,3875.1,7.43621287]
[1753937743402,0.004,3875.4,3875.1,4.85563431]
[1753937743590,0.004,3875.4,3875.1,3.945]
[1753937744304,0.004,3875.4,3875.1,6.52557856]
[1753937744505,0.004,3875.4,3875.1,3.945]
[1753937745916,0.004,3875.4,3874.5,0.001]
[1753937746206,0.004,3875.4,3874.6,3.942]
[1753937746507,0.24195344,3875.1,3874.6,4.59449838]
[1753937746688,0.004,3875.4,3874.6,4.59449838]
[1753937746888,0.24199709,3875.1,3874.6,4.59449838]
[1753937747210,0.004,3875.4,3874.6,4.59449838]
[1753937747512,0.24199917,3875.1,3874.6,0.65249838]
[1753937747707,0.004,3875.4,3874.7,3.943]
[1753937748091,0.24203081,3875.1,3874.7,3.943]
[1753937748287,0.004,3875.4,3874.7,3.943]
[1753937748480,0.24204921,3875.1,3874.7,3.943]
[1753937748682,0.004,3875.4,3874.7,3.943]
[1753937748883,0.24204854,3875.1,3874.7,3.943]
[1753937749115,0.004,3875.4,3874.7,3.943]
[1753937749302,0.2420467,3875.1,3874.7,3.943]
[1753937749582,0.004,3875.4,3874.7,3.943]
[1753937749782,0.24204719,3875.1,3874.7,3.943]
[1753937750004,0.004,3875.4,3874.7,3.943]
[1753937750201,0.24204718,3875.1,3874.7,3.943]
[1753937750512,0.004,3875.4,3874.7,3.943]
[1753937750714,0.2420453,3875.1,3874.7,3.943]
[1753937750914,0.004,3875.4,3874.7,3.943]
[1753937751102,0.24204662,3875.1,3874.7,3.943]
[1753937751304,0.004,3875.4,3874.7,3.943]
[1753937751613,0.24204564,3875.1,3874.7,3.943]
[1753937751919,0.24204566,3875.0,3874.7,3.943]
[1753937752114,0.004,3875.4,3874.8,3.941]
[1753937752415,0.24204704,3875.1,3874.9,3.941]
[1753937752615,0.24204704,3875.0,3874.9,3.941]
[1753937753328,0.24204204,3875.0,3874.9,3.941]
[1753937753638,0.004,3875.4,3874.5,0.001]
[1753937753787,0.24203894,3875.0,3874.6,3.94]
[1753937753982,0.24203894,3875.0,3874.5,0.001]
[1753937754286,0.24203894,3875.0,3874.6,3.939]
[1753937754503,4.80671905,3875.2,3874.6,3.939]
[1753937755312,0.24203506,3875.1,3874.6,3.939]
[1753937755622,0.24203506,3875.0,3874.6,3.939]
[1753937755820,4.80671905,3875.2,3874.6,3.939]
[1753937755981,0.24202869,3875.1,3874.6,3.939]
[1753937756178,0.24202869,3875.0,3874.6,3.939]
[1753937756382,4.80671905,3875.2,3874.6,3.939]
[1753937756725,0.24202443,3875.1,3874.7,3.939]
[1753937756887,0.24202443,3875.0,3874.7,3.939]
[1753937757090,4.80671905,3875.2,3874.7,3.939]
[1753937757289,0.24202441,3875.1,3874.7,3.939]
[1753937757500,0.24202441,3875.0,3874.7,3.939]